[Event "Late-Titled-Tuesday-Blitz-February-13-2024"]
[Site "Chess.com"]
[Date "2024.02.13"]
[Round "1"]
[White "hmatyi07"]
[Black "crazy_but_lazy"]
[Result "1-0"]
[WhiteElo "2253"]
[BlackElo "2572"]
[TimeControl "180+1"]
[EndTime "14:07:56 PST"]
[Termination "hmatyi07 won on time"]

1. d4 {[%clk 0:02:58.7]} 1... d5 {[%clk 0:02:58]} 2. c4 {[%clk 0:02:57.1]} 2...
e6 {[%clk 0:02:58.4]} 3. Nc3 {[%clk 0:02:51.9]} 3... a6 {[%clk 0:02:51.9]} 4.
cxd5 {[%clk 0:02:47.4]} 4... exd5 {[%clk 0:02:52.7]} 5. Bf4 {[%clk 0:02:44.9]}
5... c6 {[%clk 0:02:52.7]} 6. e3 {[%clk 0:02:43.8]} 6... Bd6 {[%clk 0:02:50.6]}
7. Bxd6 {[%clk 0:02:42.9]} 7... Qxd6 {[%clk 0:02:51.5]} 8. Bd3 {[%clk
0:02:38.8]} 8... Ne7 {[%clk 0:02:51.4]} 9. Qc2 {[%clk 0:02:30.7]} 9... g6 {[%clk
0:02:48.8]} 10. Nge2 {[%clk 0:02:26.8]} 10... Bf5 {[%clk 0:02:48.3]} 11. O-O
{[%clk 0:02:24.5]} 11... O-O {[%clk 0:02:47.8]} 12. Ng3 {[%clk 0:02:24.1]} 12...
Bxd3 {[%clk 0:02:47]} 13. Qxd3 {[%clk 0:02:24.1]} 13... Nd7 {[%clk 0:02:47.7]}
14. Rad1 {[%clk 0:02:15.4]} 14... Rad8 {[%clk 0:02:46.9]} 15. f3 {[%clk
0:02:14.8]} 15... c5 {[%clk 0:02:16.5]} 16. dxc5 {[%clk 0:02:10.8]} 16... Nxc5
{[%clk 0:02:13.3]} 17. Qd4 {[%clk 0:02:03.8]} 17... Nc6 {[%clk 0:02:06.4]} 18.
Qd2 {[%clk 0:01:28.4]} 18... d4 {[%clk 0:01:52.9]} 19. Nce4 {[%clk 0:01:21.8]}
19... Nxe4 {[%clk 0:01:48.8]} 20. Nxe4 {[%clk 0:01:17.2]} 20... Qe7 {[%clk
0:01:49.3]} 21. exd4 {[%clk 0:01:15.1]} 21... Nxd4 {[%clk 0:01:46.4]} 22. Qf2
{[%clk 0:01:14.2]} 22... Ne6 {[%clk 0:01:33.4]} 23. Rfe1 {[%clk 0:01:07.5]}
23... Rxd1 {[%clk 0:01:32.6]} 24. Rxd1 {[%clk 0:01:07.5]} 24... Rc8 {[%clk
0:01:33.3]} 25. Qg3 {[%clk 0:00:59.1]} 25... Nc5 {[%clk 0:00:44.9]} 26. Nc3
{[%clk 0:00:35.4]} 26... Qe3+ {[%clk 0:00:13.4]} 27. Qf2 {[%clk 0:00:35.2]}
27... Qxf2+ {[%clk 0:00:14]} 28. Kxf2 {[%clk 0:00:36]} 28... Ne6 {[%clk
0:00:13.5]} 29. Rd2 {[%clk 0:00:29.4]} 29... b5 {[%clk 0:00:13.7]} 30. g3 {[%clk
0:00:26.1]} 30... Kg7 {[%clk 0:00:13.8]} 31. Ne4 {[%clk 0:00:22.1]} 31... h5
{[%clk 0:00:12.7]} 32. b3 {[%clk 0:00:21]} 32... Rc7 {[%clk 0:00:12.5]} 33. f4
{[%clk 0:00:19.2]} 33... a5 {[%clk 0:00:10]} 34. Ke3 {[%clk 0:00:19]} 34... a4
{[%clk 0:00:09.4]} 35. bxa4 {[%clk 0:00:15.8]} 35... bxa4 {[%clk 0:00:10.3]} 36.
Ng5 {[%clk 0:00:10.4]} 36... Nxg5 {[%clk 0:00:03.1]} 37. fxg5 {[%clk 0:00:11.3]}
37... Rc5 {[%clk 0:00:03.8]} 38. h4 {[%clk 0:00:10.3]} 38... Rc3+ {[%clk
0:00:02.9]} 39. Kf4 {[%clk 0:00:08.9]} 39... Ra3 {[%clk 0:00:02.4]} 40. Rb2
{[%clk 0:00:06.5]} 40... Kf8 {[%clk 0:00:02.3]} 41. Rc2 {[%clk 0:00:03.3]} 41...
Ke7 {[%clk 0:00:02.6]} 42. Rd2 {[%clk 0:00:02.6]} 42... Ke6 {[%clk 0:00:02.8]}
43. Re2+ {[%clk 0:00:01.7]} 43... Kd6 {[%clk 0:00:03.4]} 44. Rc2 {[%clk
0:00:02.2]} 44... Rd3 {[%clk 0:00:02.1]} 45. Rb2 {[%clk 0:00:02.2]} 1-0

[Event "Late-Titled-Tuesday-Blitz-February-13-2024"]
[Site "Chess.com"]
[Date "2024.02.13"]
[Round "1"]
[White "JG-17"]
[Black "Beca95"]
[Result "0-1"]
[WhiteElo "2481"]
[BlackElo "2902"]
[TimeControl "180+1"]
[EndTime "14:07:59 PST"]
[Termination "Beca95 won by resignation"]

1. Nf3 {[%clk 0:02:58.5]} 1... c5 {[%clk 0:02:59.4]} 2. b3 {[%clk 0:02:56.4]}
2... d6 {[%clk 0:02:57.2]} 3. Bb2 {[%clk 0:02:47.9]} 3... e5 {[%clk 0:02:57]} 4.
d3 {[%clk 0:02:46.5]} 4... f5 {[%clk 0:02:55.9]} 5. g3 {[%clk 0:02:42.3]} 5...
Nc6 {[%clk 0:02:52.4]} 6. Bg2 {[%clk 0:02:42.2]} 6... g5 {[%clk 0:02:52.2]} 7.
e4 {[%clk 0:02:34.8]} 7... f4 {[%clk 0:02:49.1]} 8. gxf4 {[%clk 0:02:16.5]} 8...
gxf4 {[%clk 0:02:50]} 9. Nbd2 {[%clk 0:02:16.6]} 9... Nge7 {[%clk 0:02:45.9]}
10. Qe2 {[%clk 0:02:16.1]} 10... Bg4 {[%clk 0:02:43.7]} 11. h3 {[%clk
0:02:12.8]} 11... Bh5 {[%clk 0:02:42]} 12. O-O-O {[%clk 0:02:07.4]} 12... Ng6
{[%clk 0:02:40.9]} 13. h4 {[%clk 0:01:41.7]} 13... b5 {[%clk 0:02:38.6]} 14. Bh3
{[%clk 0:01:38.6]} 14... Nd4 {[%clk 0:02:35.4]} 15. Bxd4 {[%clk 0:01:36.4]}
15... cxd4 {[%clk 0:02:36.3]} 16. Rdg1 {[%clk 0:01:31.5]} 16... Qa5 {[%clk
0:02:30.5]} 17. Kb1 {[%clk 0:01:29.2]} 17... Be7 {[%clk 0:02:25.7]} 18. Bg4
{[%clk 0:01:29.3]} 18... Bxg4 {[%clk 0:02:24.7]} 19. Rxg4 {[%clk 0:01:30.2]}
19... Qc3 {[%clk 0:02:21.9]} 20. h5 {[%clk 0:01:28.1]} 20... d5 {[%clk
0:02:15.1]} 21. Nc4 {[%clk 0:00:44.5]} 21... bxc4 {[%clk 0:02:11.4]} 22. Qe1
{[%clk 0:00:40.1]} 22... Qxe1+ {[%clk 0:01:52.5]} 23. Rxe1 {[%clk 0:00:41]}
23... Nf8 {[%clk 0:01:49.7]} 24. exd5 {[%clk 0:00:38.6]} 24... cxd3 {[%clk
0:01:47.8]} 25. cxd3 {[%clk 0:00:37.9]} 25... Nd7 {[%clk 0:01:46.9]} 26. Nxe5
{[%clk 0:00:34.1]} 26... Nxe5 {[%clk 0:01:46.7]} 27. Rxe5 {[%clk 0:00:34.9]}
27... Kd7 {[%clk 0:01:45.6]} 28. Rg7 {[%clk 0:00:23]} 28... Rae8 {[%clk
0:01:44.9]} 29. Re4 {[%clk 0:00:19.6]} 29... Kd8 {[%clk 0:01:36.8]} 30. Rxf4
{[%clk 0:00:17.1]} 30... Rhf8 {[%clk 0:01:35.1]} 31. Rxf8 {[%clk 0:00:16.1]}
31... Rxf8 {[%clk 0:01:36]} 32. Rxh7 {[%clk 0:00:16.7]} 32... Rxf2 {[%clk
0:01:35.1]} 33. Rh8+ {[%clk 0:00:17.1]} 33... Kd7 {[%clk 0:01:33.8]} 34. h6
{[%clk 0:00:18]} 34... Rh2 {[%clk 0:01:25.3]} 35. h7 {[%clk 0:00:18]} 35... Kd6
{[%clk 0:01:24]} 36. a4 {[%clk 0:00:12.2]} 36... Kxd5 {[%clk 0:01:23.3]} 37. b4
{[%clk 0:00:08.2]} 37... Ke6 {[%clk 0:01:14.9]} 38. a5 {[%clk 0:00:07.4]} 38...
Kf7 {[%clk 0:01:11.6]} 39. b5 {[%clk 0:00:07.8]} 39... Rh5 {[%clk 0:00:50.4]}
40. b6 {[%clk 0:00:05.2]} 40... axb6 {[%clk 0:00:50.7]} 41. a6 {[%clk
0:00:05.5]} 41... Kg7 {[%clk 0:00:43.6]} 42. a7 {[%clk 0:00:03.4]} 42... Rb5+
{[%clk 0:00:34.3]} 43. Kc2 {[%clk 0:00:02.9]} 43... Rc5+ {[%clk 0:00:34.3]} 44.
Kd2 {[%clk 0:00:03]} 44... Bg5+ {[%clk 0:00:30.5]} 45. Kd1 {[%clk 0:00:03.3]}
45... Kxh8 {[%clk 0:00:30.7]} 46. a8=Q+ {[%clk 0:00:02.9]} 46... Kxh7 {[%clk
0:00:31.6]} 47. Qb7+ {[%clk 0:00:02.1]} 47... Kg8 {[%clk 0:00:27.7]} 48. Qxb6
{[%clk 0:00:03]} 48... Rf5 {[%clk 0:00:25.4]} 49. Qe6+ {[%clk 0:00:03.2]} 49...
Rf7 {[%clk 0:00:25.5]} 50. Qe4 {[%clk 0:00:03]} 50... Bf6 {[%clk 0:00:24.3]} 51.
Qg6+ {[%clk 0:00:03]} 51... Bg7 {[%clk 0:00:24.7]} 52. Qe4 {[%clk 0:00:02.9]}
52... Rf6 {[%clk 0:00:24.3]} 53. Kc2 {[%clk 0:00:03.5]} 53... Kf7 {[%clk
0:00:24.3]} 54. Kb3 {[%clk 0:00:04.1]} 54... Re6 {[%clk 0:00:24]} 55. Kc4 {[%clk
0:00:04.6]} 55... Rxe4 {[%clk 0:00:23.3]} 56. dxe4 {[%clk 0:00:05.2]} 56... Ke6
{[%clk 0:00:23.5]} 57. Kd3 {[%clk 0:00:06.1]} 57... Ke5 {[%clk 0:00:23.9]} 58.
Ke2 {[%clk 0:00:06]} 58... Kxe4 {[%clk 0:00:24.8]} 59. Kd2 {[%clk 0:00:06.9]}
59... d3 {[%clk 0:00:24.9]} 0-1

[Event "Late-Titled-Tuesday-Blitz-February-13-2024"]
[Site "Chess.com"]
[Date "2024.02.13"]
[Round "1"]
[White "YurasovMat-2012"]
[Black "pinguino120"]
[Result "0-1"]
[WhiteElo "2652"]
[BlackElo "2339"]
[TimeControl "180+1"]
[EndTime "14:08:03 PST"]
[Termination "pinguino120 won on time"]

1. e4 {[%clk 0:03:00.9]} 1... c6 {[%clk 0:02:59]} 2. Nf3 {[%clk 0:02:58.7]} 2...
d5 {[%clk 0:02:58.4]} 3. e5 {[%clk 0:02:58.5]} 3... Bg4 {[%clk 0:02:54.6]} 4. h3
{[%clk 0:02:55.9]} 4... Bxf3 {[%clk 0:02:46]} 5. Qxf3 {[%clk 0:02:56.8]} 5... e6
{[%clk 0:02:45.7]} 6. d4 {[%clk 0:02:53.2]} 6... c5 {[%clk 0:02:39.2]} 7. dxc5
{[%clk 0:02:45.3]} 7... Bxc5 {[%clk 0:02:25.5]} 8. Qg3 {[%clk 0:02:43]} 8... Kf8
{[%clk 0:01:54.3]} 9. c3 {[%clk 0:02:38.6]} 9... Ne7 {[%clk 0:01:51.8]} 10. Nd2
{[%clk 0:02:36.5]} 10... Nbc6 {[%clk 0:01:47.1]} 11. Nf3 {[%clk 0:02:35.8]}
11... Nf5 {[%clk 0:01:43.6]} 12. Qf4 {[%clk 0:02:33.6]} 12... Qb6 {[%clk
0:01:41.4]} 13. Qd2 {[%clk 0:02:31]} 13... d4 {[%clk 0:01:31.5]} 14. g4 {[%clk
0:02:27.8]} 14... dxc3 {[%clk 0:01:26.3]} 15. bxc3 {[%clk 0:02:28.7]} 15... Rd8
{[%clk 0:01:25.5]} 16. Qc2 {[%clk 0:02:27.6]} 16... Nfe7 {[%clk 0:01:20.1]} 17.
Rb1 {[%clk 0:02:26.9]} 17... Qc7 {[%clk 0:01:18.2]} 18. Bf4 {[%clk 0:02:24.2]}
18... Ng6 {[%clk 0:01:17.7]} 19. Bg3 {[%clk 0:02:23.3]} 19... Ngxe5 {[%clk
0:01:16.6]} 20. Nxe5 {[%clk 0:02:22.7]} 20... Nxe5 {[%clk 0:01:15.5]} 21. Bg2
{[%clk 0:02:22.5]} 21... b6 {[%clk 0:01:05.1]} 22. O-O {[%clk 0:02:21.3]} 22...
Bd6 {[%clk 0:01:05.1]} 23. Rbd1 {[%clk 0:02:19.4]} 23... Nc4 {[%clk 0:01:04.4]}
24. Qd3 {[%clk 0:02:00.9]} 24... Ke7 {[%clk 0:00:57.3]} 25. Qe4 {[%clk
0:01:18.7]} 25... Bxg3 {[%clk 0:00:47.1]} 26. fxg3 {[%clk 0:01:19.6]} 26... Rxd1
{[%clk 0:00:25.7]} 27. Rxd1 {[%clk 0:01:20.5]} 27... Nd6 {[%clk 0:00:23.5]} 28.
Qf4 {[%clk 0:01:18.1]} 28... Rd8 {[%clk 0:00:22.5]} 29. Qg5+ {[%clk 0:01:07.1]}
29... Kf8 {[%clk 0:00:20]} 30. Kh2 {[%clk 0:01:07.7]} 30... Qe7 {[%clk
0:00:19.3]} 31. Qf4 {[%clk 0:01:04.2]} 31... Kg8 {[%clk 0:00:17.7]} 32. c4
{[%clk 0:01:00.9]} 32... h6 {[%clk 0:00:17.9]} 33. a4 {[%clk 0:00:57.9]} 33...
Nb7 {[%clk 0:00:14.4]} 34. Rxd8+ {[%clk 0:00:48.4]} 34... Nxd8 {[%clk
0:00:15.3]} 35. Qb8 {[%clk 0:00:47.1]} 35... Qd7 {[%clk 0:00:14.8]} 36. a5
{[%clk 0:00:39.9]} 36... bxa5 {[%clk 0:00:13.7]} 37. c5 {[%clk 0:00:40.2]} 37...
Kh7 {[%clk 0:00:12.7]} 38. c6 {[%clk 0:00:34.5]} 38... Nxc6 {[%clk 0:00:12.5]}
39. Qb5 {[%clk 0:00:35.1]} 39... Ne5 {[%clk 0:00:07.3]} 40. Qxe5 {[%clk
0:00:34.3]} 40... a4 {[%clk 0:00:06.9]} 41. Qc3 {[%clk 0:00:32.8]} 41... Qb5
{[%clk 0:00:05.2]} 42. Be4+ {[%clk 0:00:29.8]} 42... g6 {[%clk 0:00:05.3]} 43.
Bd3 {[%clk 0:00:25.1]} 43... Qb3 {[%clk 0:00:04.2]} 44. Qd4 {[%clk 0:00:07.4]}
44... Qa2+ {[%clk 0:00:04.5]} 45. Kg1 {[%clk 0:00:06.3]} 45... a3 {[%clk
0:00:04.9]} 46. Qf6 {[%clk 0:00:04.3]} 46... Kg8 {[%clk 0:00:04.1]} 47. Qd8+
{[%clk 0:00:04.3]} 47... Kh7 {[%clk 0:00:04.4]} 48. Qe7 {[%clk 0:00:03.5]} 48...
Kg7 {[%clk 0:00:04.6]} 49. Qc5 {[%clk 0:00:03.1]} 49... Qa1+ {[%clk 0:00:04.9]}
50. Kg2 {[%clk 0:00:03.1]} 50... Qb2+ {[%clk 0:00:05.8]} 51. Kf3 {[%clk
0:00:01.8]} 51... a2 {[%clk 0:00:06.7]} 0-1

[Event "Late-Titled-Tuesday-Blitz-February-13-2024"]
[Site "Chess.com"]
[Date "2024.02.13"]
[Round "1"]
[White "colegiodemadrid"]
[Black "LUISMIGUELOV"]
[Result "1-0"]
[WhiteElo "2557"]
[BlackElo "2178"]
[TimeControl "180+1"]
[EndTime "14:08:03 PST"]
[Termination "colegiodemadrid won by resignation"]

1. Nf3 {[%clk 0:02:58.9]} 1... d5 {[%clk 0:02:58.3]} 2. e3 {[%clk 0:02:55.3]}
2... c6 {[%clk 0:02:58.2]} 3. c4 {[%clk 0:02:55.6]} 3... Bg4 {[%clk 0:02:57.1]}
4. Nc3 {[%clk 0:02:54.7]} 4... e6 {[%clk 0:02:56.7]} 5. h3 {[%clk 0:02:50.7]}
5... Bh5 {[%clk 0:02:54.6]} 6. Be2 {[%clk 0:02:50.2]} 6... Bd6 {[%clk
0:02:53.8]} 7. g4 {[%clk 0:02:48.2]} 7... Bg6 {[%clk 0:02:52.7]} 8. Qb3 {[%clk
0:02:45.9]} 8... Qb6 {[%clk 0:02:45.2]} 9. d4 {[%clk 0:02:43.8]} 9... dxc4
{[%clk 0:02:42.5]} 10. Bxc4 {[%clk 0:02:42.1]} 10... Qxb3 {[%clk 0:02:38.1]} 11.
Bxb3 {[%clk 0:02:40.3]} 11... Nd7 {[%clk 0:02:37.6]} 12. Bd2 {[%clk 0:02:38.3]}
12... Ngf6 {[%clk 0:02:36.4]} 13. O-O {[%clk 0:02:29.9]} 13... Ne4 {[%clk
0:02:32.9]} 14. Nxe4 {[%clk 0:02:27.8]} 14... Bxe4 {[%clk 0:02:31.8]} 15. Ng5
{[%clk 0:02:28.5]} 15... Bg6 {[%clk 0:02:27.2]} 16. f4 {[%clk 0:02:23.8]} 16...
Bd3 {[%clk 0:02:26.3]} 17. Rf2 {[%clk 0:02:19.2]} 17... h6 {[%clk 0:02:26.4]}
18. Nf3 {[%clk 0:02:17.9]} 18... Nf6 {[%clk 0:02:25.2]} 19. Ne5 {[%clk
0:02:13.1]} 19... Bxe5 {[%clk 0:02:23.6]} 20. fxe5 {[%clk 0:02:11.2]} 20... Ne4
{[%clk 0:02:22.9]} 21. Rh2 {[%clk 0:02:10.1]} 21... Nxd2 {[%clk 0:02:17.7]} 22.
Rxd2 {[%clk 0:02:08.5]} 22... Be4 {[%clk 0:02:17.8]} 23. Rf2 {[%clk 0:02:06.6]}
23... O-O {[%clk 0:02:16.8]} 24. Rf4 {[%clk 0:02:06.3]} 24... Bg6 {[%clk
0:02:10.6]} 25. h4 {[%clk 0:02:05.2]} 25... Rad8 {[%clk 0:02:09]} 26. Rc1 {[%clk
0:02:02.6]} 26... Rd7 {[%clk 0:02:07.4]} 27. h5 {[%clk 0:02:01.1]} 27... Bh7
{[%clk 0:02:03.3]} 28. Kg2 {[%clk 0:01:57.8]} 28... Rfd8 {[%clk 0:01:53.8]} 29.
Kf2 {[%clk 0:01:52.6]} 29... Bd3 {[%clk 0:01:44.8]} 30. Rc3 {[%clk 0:01:46.6]}
30... Bh7 {[%clk 0:01:41.6]} 31. Ke2 {[%clk 0:01:44.4]} 31... Re7 {[%clk
0:01:35.4]} 32. a4 {[%clk 0:01:41.4]} 32... a5 {[%clk 0:01:33]} 33. Bc4 {[%clk
0:01:40.5]} 33... Kf8 {[%clk 0:01:21.2]} 34. Rc1 {[%clk 0:01:36.5]} 34... Ke8
{[%clk 0:01:19.9]} 35. Rcf1 {[%clk 0:01:33.9]} 35... Rdd7 {[%clk 0:01:18.5]} 36.
Bd3 {[%clk 0:01:32.8]} 36... Bxd3+ {[%clk 0:01:16.8]} 37. Kxd3 {[%clk
0:01:33.7]} 37... Rd5 {[%clk 0:01:16.1]} 38. Kc4 {[%clk 0:01:29.2]} 38... Red7
{[%clk 0:01:14.6]} 39. b3 {[%clk 0:01:22.4]} 39... b5+ {[%clk 0:01:14]} 40. Kc3
{[%clk 0:01:19.8]} 40... Rc7 {[%clk 0:01:10.2]} 41. R4f3 {[%clk 0:01:14]} 41...
Rdd7 {[%clk 0:01:05.7]} 42. Kb2 {[%clk 0:01:10.2]} 42... bxa4 {[%clk 0:01:04.2]}
43. bxa4 {[%clk 0:01:10.2]} 43... Rb7+ {[%clk 0:01:04.4]} 44. Kc3 {[%clk
0:01:08.2]} 44... Rb4 {[%clk 0:01:04.4]} 45. Ra1 {[%clk 0:01:08.7]} 45... Rdb7
{[%clk 0:01:04]} 46. Ra3 {[%clk 0:01:08.5]} 46... Rb1 {[%clk 0:00:58.3]} 47. Rf2
{[%clk 0:01:08]} 47... R7b4 {[%clk 0:00:56.7]} 48. Rc2 {[%clk 0:01:07.1]} 48...
Rg1 {[%clk 0:00:53.9]} 49. Kd3 {[%clk 0:01:07]} 49... Rxg4 {[%clk 0:00:52.9]}
50. Rxc6 {[%clk 0:01:06.1]} 50... g6 {[%clk 0:00:31.7]} 51. Rc8+ {[%clk
0:01:03.1]} 51... Ke7 {[%clk 0:00:29.6]} 52. Rac3 {[%clk 0:01:03.4]} 52... Rb7
{[%clk 0:00:29.1]} 53. hxg6 {[%clk 0:01:02.7]} 53... Rxg6 {[%clk 0:00:28.3]} 54.
Rh8 {[%clk 0:00:50.6]} 54... Rd7 {[%clk 0:00:23.1]} 55. Rcc8 {[%clk 0:00:49.1]}
55... Rb7 {[%clk 0:00:20.2]} 56. Rc5 {[%clk 0:00:44.8]} 56... Rb3+ {[%clk
0:00:16.9]} 57. Kc4 {[%clk 0:00:44.6]} 57... Rb4+ {[%clk 0:00:16.1]} 58. Kd3
{[%clk 0:00:44.9]} 58... Rb7 {[%clk 0:00:14.3]} 59. Rxa5 {[%clk 0:00:44.4]}
59... Rg3 {[%clk 0:00:13.3]} 60. Rb5 {[%clk 0:00:43.8]} 60... Ra7 {[%clk
0:00:12.3]} 61. a5 {[%clk 0:00:44]} 61... Rh3 {[%clk 0:00:11.3]} 62. a6 {[%clk
0:00:44]} 62... f6 {[%clk 0:00:09.7]} 63. Rb7+ {[%clk 0:00:43.8]} 63... Rxb7
{[%clk 0:00:07.7]} 64. axb7 {[%clk 0:00:44.7]} 1-0

[Event "Late-Titled-Tuesday-Blitz-February-13-2024"]
[Site "Chess.com"]
[Date "2024.02.13"]
[Round "1"]
[White "koncheto"]
[Black "GMBenjaminBok"]
[Result "0-1"]
[WhiteElo "2506"]
[BlackElo "2976"]
[TimeControl "180+1"]
[EndTime "14:08:04 PST"]
[Termination "GMBenjaminBok won by resignation"]

1. e4 {[%clk 0:03:00.9]} 1... c5 {[%clk 0:02:59.4]} 2. Nf3 {[%clk 0:03:01.3]}
2... d6 {[%clk 0:02:59.3]} 3. d4 {[%clk 0:03:02]} 3... cxd4 {[%clk 0:03:00.2]}
4. Nxd4 {[%clk 0:03:02.9]} 4... Nf6 {[%clk 0:03:00.5]} 5. f3 {[%clk 0:03:03.6]}
5... Nc6 {[%clk 0:02:59.9]} 6. c4 {[%clk 0:03:03.9]} 6... Qb6 {[%clk 0:02:59.8]}
7. Nb3 {[%clk 0:02:50.1]} 7... e6 {[%clk 0:02:57.7]} 8. Nc3 {[%clk 0:02:49.2]}
8... Be7 {[%clk 0:02:56.4]} 9. Bd3 {[%clk 0:02:48.2]} 9... O-O {[%clk
0:02:54.6]} 10. Qe2 {[%clk 0:02:48.4]} 10... Ne5 {[%clk 0:02:12.6]} 11. Be3
{[%clk 0:02:38.5]} 11... Qc7 {[%clk 0:02:13.2]} 12. O-O {[%clk 0:02:36.9]} 12...
Bd7 {[%clk 0:02:10.1]} 13. Rac1 {[%clk 0:02:36.4]} 13... a6 {[%clk 0:02:06.3]}
14. Nd4 {[%clk 0:02:31.3]} 14... Rfc8 {[%clk 0:02:00.3]} 15. b3 {[%clk 0:02:16]}
15... Qa5 {[%clk 0:01:54.6]} 16. Bd2 {[%clk 0:02:07.8]} 16... Qc5 {[%clk
0:01:28.8]} 17. Be3 {[%clk 0:02:06.6]} 17... Qa5 {[%clk 0:01:22.1]} 18. Bd2
{[%clk 0:02:05.7]} 18... Qd8 {[%clk 0:01:21.6]} 19. Be3 {[%clk 0:02:00.2]} 19...
Nxd3 {[%clk 0:01:05.4]} 20. Qxd3 {[%clk 0:01:59.8]} 20... Qa5 {[%clk 0:01:06.1]}
21. Rfd1 {[%clk 0:01:57.2]} 21... h6 {[%clk 0:01:04.5]} 22. Bd2 {[%clk
0:01:53.9]} 22... Qc7 {[%clk 0:01:03.1]} 23. Be3 {[%clk 0:01:51.4]} 23... Be8
{[%clk 0:01:03.1]} 24. h3 {[%clk 0:01:42.2]} 24... Rab8 {[%clk 0:01:02.3]} 25.
f4 {[%clk 0:01:41.4]} 25... Qa5 {[%clk 0:00:54.5]} 26. Bd2 {[%clk 0:01:38.5]}
26... Qc5 {[%clk 0:00:53]} 27. Be3 {[%clk 0:01:38.7]} 27... Qh5 {[%clk 0:00:53]}
28. a4 {[%clk 0:01:22.3]} 28... Nd7 {[%clk 0:00:35]} 29. Nf3 {[%clk 0:01:11.4]}
29... Qa5 {[%clk 0:00:30.6]} 30. Qc2 {[%clk 0:01:03.7]} 30... Nc5 {[%clk
0:00:27.4]} 31. Bd2 {[%clk 0:00:56.7]} 31... Qb6 {[%clk 0:00:23.5]} 32. Be3
{[%clk 0:00:29.2]} 32... Qxb3 {[%clk 0:00:23.8]} 33. Qe2 {[%clk 0:00:28.3]}
33... Nxa4 {[%clk 0:00:20.8]} 34. Nxa4 {[%clk 0:00:26.7]} 34... Qxa4 {[%clk
0:00:20.5]} 35. e5 {[%clk 0:00:26.9]} 35... dxe5 {[%clk 0:00:19.5]} 36. Nxe5
{[%clk 0:00:27.8]} 36... Rd8 {[%clk 0:00:17.5]} 37. Rf1 {[%clk 0:00:27.1]} 37...
Qa5 {[%clk 0:00:12.7]} 38. Kh1 {[%clk 0:00:23.6]} 38... Bc5 {[%clk 0:00:12.5]}
39. Rf3 {[%clk 0:00:16.4]} 39... Bxe3 {[%clk 0:00:12.2]} 40. Qxe3 {[%clk
0:00:15.3]} 40... Qd2 {[%clk 0:00:12.7]} 41. Qg1 {[%clk 0:00:15.7]} 41... f6
{[%clk 0:00:09.8]} 42. Ng4 {[%clk 0:00:14.8]} 42... Bc6 {[%clk 0:00:09.9]} 43.
Rg3 {[%clk 0:00:13.9]} 43... Qxf4 {[%clk 0:00:08.4]} 44. Kh2 {[%clk 0:00:10.7]}
44... Rd3 {[%clk 0:00:07.5]} 45. Qe1 {[%clk 0:00:08.8]} 45... Qxg3+ {[%clk
0:00:07.7]} 46. Qxg3 {[%clk 0:00:09.7]} 46... Rxg3 {[%clk 0:00:08.1]} 47. Kxg3
{[%clk 0:00:10.1]} 47... Rd8 {[%clk 0:00:08.8]} 48. Re1 {[%clk 0:00:09.6]} 48...
Rd3+ {[%clk 0:00:08.5]} 49. Ne3 {[%clk 0:00:09.7]} 49... Kf7 {[%clk 0:00:08.1]}
50. Kf2 {[%clk 0:00:09.9]} 50... Rd2+ {[%clk 0:00:08.3]} 51. Kf1 {[%clk
0:00:09.3]} 51... a5 {[%clk 0:00:08]} 52. Ra1 {[%clk 0:00:09.2]} 52... a4 {[%clk
0:00:08.4]} 53. Nd1 {[%clk 0:00:08.4]} 53... Rxg2 {[%clk 0:00:07.6]} 54. Ne3
{[%clk 0:00:08.7]} 54... Rg3 {[%clk 0:00:07.7]} 55. Kf2 {[%clk 0:00:08.8]} 55...
Rxh3 {[%clk 0:00:07.9]} 56. Rb1 {[%clk 0:00:09.7]} 56... Rh2+ {[%clk 0:00:08]}
57. Kg3 {[%clk 0:00:09.9]} 57... Rd2 {[%clk 0:00:08.2]} 58. Rb4 {[%clk 0:00:09]}
58... a3 {[%clk 0:00:08.4]} 59. c5 {[%clk 0:00:09.3]} 59... a2 {[%clk
0:00:08.5]} 60. Nc4 {[%clk 0:00:09.9]} 60... Rd3+ {[%clk 0:00:08.4]} 0-1